Cogmind - Beta 13 @@@ ROGUE MODE // 2024.04.08 @ 17:31:50 Player: kilohertz Result: Destroyed by Y-45 Defender with Beam Rifle Performance ------------- Evolutions (1) 500 Regions Visited (2) 400 Robots Destroyed (25) 125 Value Destroyed (774) 774 Prototype IDs (0) 0 Alien Tech Used (0) 0 Bonus (-186) -186 TOTAL SCORE: 1613 Bonus ------- Friendly Fire -186 Cogmind --------- Core Integrity 0/400 Matter 300/300 Energy 102/265 System Corruption 0% Temperature Cool (18) Movement Rolling (100) Location -9/Materials Parts ------- > --- POWER (1) -------- Improved Ion Engine > --- PROPULSION (2) --- Compact Wheel Compact Wheel > --- UTILITY (4) ------ Large Storage Unit Signal Interpreter High-powered Tractor Beam > --- WEAPON (2) ------- Light Cannon > --- INVENTORY (15) --- Ion Engine Light Ion Engine Compact Wheel Medium Storage Unit Small Laser Heavy Assault Rifle Peak State ------------ > --- POWER ------------ Improved Ion Engine > --- PROPULSION ------- Compact Wheel Compact Wheel > --- UTILITY ---------- Large Storage Unit Sensor Array Signal Interpreter High-powered Tractor Beam > --- WEAPON ----------- Assault Rifle Light Assault Rifle > --- INVENTORY -------- Ion Engine Ion Engine Light Ion Engine Light Ion Engine Compact Wheel Compact Wheel Compact Wheel Compact Wheel Medium Storage Unit EM Pulse Gun Small Laser Assault Rifle Heavy Assault Rifle Light Cannon [Rating: 12] Favorites ----------- Power Light Ion Engine Engine Light Ion Engine Power Core Light Nuclear Core Propulsion Compact Wheel Wheel Compact Wheel Utility Sensor Array Device Sensor Array Storage Medium Storage Unit Processor Signal Interpreter Protection Core Shielding Weapon Light Assault Rifle Energy Gun Small Laser Ballistic Gun Light Assault Rifle Ballistic Cannon Light Cannon Build | -11 -10 -9 ------- Run | Yrd Mat Mat Slots Evolved 2 | . . 2 Power . | . . . Propulsion . | . . . Utility 2 | . . 2 Weapon . | . . . Parts Attached 45 | 6 16 23 Power 11 | 1 4 6 Engine 9 | 1 2 6 Core 2 | . 2 . Reactor . | . . . Propulsion 10 | 2 3 5 Treads . | . . . Leg . | . . . Wheel 10 | 2 3 5 Hover . | . . . Flight . | . . . Utility 10 | 1 5 4 Device 4 | . 2 2 Storage 3 | 1 2 . Processor 1 | . . 1 Hackware . | . . . Protection 2 | . 1 1 Artifact . | . . . Weapon 14 | 2 4 8 Energy Gun 2 | 1 . 1 Energy Cannon . | . . . Ballistic Gun 11 | 1 4 6 Ballistic Cannon 1 | . . 1 Launcher . | . . . Special Weapon . | . . . Impact Weapon . | . . . Slashing Weapon . | . . . Piercing Weapon . | . . . Special Melee Weapon . | . . . Unidentified Prototypes . | . . . Parts Lost 19 | . 5 14 Power 5 | . 2 3 Propulsion 5 | . 1 4 Utility 2 | . . 2 Weapon 7 | . 2 5 Highest Loss Streak 9 | . 2 9 To Critical Strikes . | . . . Average Slot Usage (%) 93 | . 97 86 Engine 8 | . 7 10 Core 4 | . 6 . Wheel 24 | . 26 21 Device 10 | . 7 17 Storage 12 | . 14 11 Processor 1 | . . 4 Protection 3 | . 5 . Ballistic Gun 24 | . 26 20 Naked Turns . | . . . Heaviest Build 33 | 10 26 33 Greatest Support 32 | 32 32 32 Greatest Overweight (x) 1 | . 1 1 Average Overweight (x) . | . . . Largest Inventory Capacity 15 | 8 15 15 Average Capacity 12 | 6 10 15 Most Carried 14 | 4 11 14 Average Carried 10 | 1 9 12 Final Capacity 15 | 8 15 15 Final Carried 11 | 4 11 6 Class Distribution -------------------- 97% | Mutant Dominant Class ---------------- Mutant | -10/Materials Mutant | -9/Materials Resources | -11 -10 -9 ----------- Run | Yrd Mat Mat Matter Collected 916 | 241 197 478 Remotely 369 | . . 369 Salvage Created 871 | . 269 602 Parts 66 | . 20 46 Haulers Intercepted . | . . . Recyclers Shooed . | . . . Parts Field Recycled . | . . . Retrieved Matter . | . . . Parts Self-Destructed . | . . . Prevented . | . . . Kills | -11 -10 -9 ------- Run | Yrd Mat Mat Combat Hostiles Destroyed 20 | . 7 13 Guns 20 | . 7 13 Classes Destroyed 5 | . 4 1 Operator 1 | . 1 . Watcher 4 | . 2 2 Swarmer 3 | . 3 . Grunt 14 | . 4 10 Sentry 3 | . . 3 Best Kill Streak 5 | . 2 5 Combat Bots Only 4 | . 2 4 Max Kills in Single Turn 1 | . 1 1 Gunslinging . | . . . Exploded . | . . . Melee . | . . . Uniques/NPCs Destroyed . | . . . Combat | -11 -10 -9 -------- Run | Yrd Mat Mat Hostile Shots Fired 188 | . 52 136 Missed 49 | . 13 36 Damage Taken 1763 | . 457 1306 Core 490 | . 83 407 Absorbed by Shields . | . . . Redirected to Shielding 7 | . 7 . Regen/Repaired (Parts) 29 | . 29 . Core Remaining (%) 83 | 100 66 . Volleys Fired 106 | . 49 57 Largest 2 | . 2 2 Hottest 60 | . 60 40 Shots Fired 183 | . 85 98 Gun 175 | . 85 90 Cannon 8 | . . 8 Launcher . | . . . Special . | . . . Kinetic 181 | . 83 98 Thermal 2 | . 2 . Explosive . | . . . Electromagnetic . | . . . Robot Hit Streak 43 | . 12 43 Robot Miss Streak 4 | . 4 3 Penetration Max . | . . . Secondary Targets 1 | . . 1 Max Gunslinging Chain 1 | . . 1 Shots Hit Robots 134 | . 53 81 Core Hits 54 | . 21 33 Critical Kills . | . . . Critical Parts Destroyed . | . . . Critical Strikes . | . . . Melee Attacks . | . . . Impact . | . . . Slashing . | . . . Piercing . | . . . Sneak Attacks . | . . . Combat Hostiles . | . . . Follow-up Attacks . | . . . Damage Inflicted 1496 | . 628 868 Guns 1213 | . 462 751 Cannons 117 | . . 117 Explosions 166 | . 166 . Melee . | . . . Ramming . | . . . Kinetic 1319 | . 451 868 Thermal 177 | . 177 . Explosive . | . . . Electromagnetic . | . . . Impact . | . . . Slashing . | . . . Piercing . | . . . Highest Corruption . | . . . Average Corruption . | . . . Corruption Purged . | . . . Corruption Blocked . | . . . Overload Shots . | . . . Overflow Damage 119 | . 119 . Projectiles . | . . . Explosions 119 | . 119 . Melee . | . . . Knockbacks 1 | . . 1 Impact . | . . . Kinetic 1 | . . 1 Secondary . | . . . Self-Inflicted Damage 40 | . 40 . Shots 1 | . 1 . Rammed . | . . . Targets Rammed . | . . . Kicked . | . . . Crushed . | . . . Highest Temperature 27 | . 26 27 Average Temperature 6 | . 6 6 Received Heat Transfer 741 | . 141 600 Siege Activations . | . . . Robots Corrupted . | . . . Combat Hostiles . | . . . Parts Fried . | . . . Impact Corruptions . | . . . Robots Melted . | . . . Combat Hostiles . | . . . Parts Melted . | . . . Heat Transferred 125 | . 125 . Parts Sabotaged . | . . . Parts Stolen . | . . . Parts Stripped . | . . . Power Chain Reactions . | . . . Alert | -11 -10 -9 ------- Run | Yrd Mat Mat Peak Influence 269 | . 196 269 Initial 35 | . . 35 Average 83 | . 85 86 Maximum Alert Level 1 | . . 1 Low Security (%) 95 | 100 100 86 Level 1 4 | . . 13 Level 2 . | . . . Level 3 . | . . . Level 4 . | . . . Level 5 . | . . . High Security . | . . . Max Security . | . . . Squads Dispatched 4 | . . 4 Investigation 2 | . . 2 Extermination . | . . . Reinforcement 2 | . . 2 Assault . | . . . Garrison . | . . . Intercept . | . . . Searches Triggered . | . . . Construction Impeded . | . . . Haulers Reinforced . | . . . Active Scanning Responses . | . . . Cargo Convoy Interrupts . | . . . Stealth | -11 -10 -9 --------- Run | Yrd Mat Mat Distress Signals 3 | . . 3 Communications Jammed . | . . . Distress Signals . | . . . Times Spotted 41 | . 19 22 Peak Tracking Total 6 | . 4 6 Tactical Retreats 4 | . 4 . Traps | -11 -10 -9 ------- Run | Yrd Mat Mat Traps Triggered 1 | . . 1 Indirectly . | . . . Trap Hack Attempts . | . . . Triggered . | . . . Disarmed . | . . . Reprogrammed . | . . . Reused . | . . . Traps Extracted . | . . . Installed . | . . . Triggered . | . . . Machines | -11 -10 -9 ---------- Run | Yrd Mat Mat Machines Disabled 3 | . 3 . Max in Single Turn 3 | . 3 . Machines Repaired . | . . . Machines Dismantled . | . . . Machines Sabotaged . | . . . Overloaded Fab Kills . | . . . Hacking | -11 -10 -9 --------- Run | Yrd Mat Mat Machines Accessed 14 | . 11 3 Terminals 10 | . 8 2 Fabricators . | . . . Repair Stations 1 | . 1 . Recycling Units 2 | . 2 . Scanalyzers 1 | . . 1 Garrison Access . | . . . Total Hacks 35 | . 28 7 Successful 24 | . 21 3 Failed 10 | . 6 4 Catastrophic 1 | . . 1 Database Lockouts 1 | . 1 . Manual 28 | . 22 6 Terminals 25 | . 19 6 Fabricators . | . . . Repair Stations 4 | . 4 . Recycling Units 5 | . 5 . Scanalyzers 1 | . . 1 Garrison Access . | . . . Terminal Hacks 5 | . 4 1 Robot Analysis 2 | . 2 . Terminal Index 1 | . 1 . Alert Level 1 | . 1 . Unreport Threat 1 | . . 1 Fabricator Hacks . | . . . Repair Station Hacks 4 | . 4 . Scan Component 2 | . 2 . Repair 2 | . 2 . Recycling Unit Hacks . | . . . Scanalyzer . | . . . Garrison Access Hacks . | . . . Unauthorized Hacks 15 | . 13 2 Terminals 11 | . 9 2 Assimilate 4 | . 3 1 Botnet 7 | . 6 1 Fabricators . | . . . Repair Stations . | . . . Recycling Units 4 | . 4 . Reject 2 | . 2 . Mask 2 | . 2 . Scanalyzers . | . . . Garrison Access . | . . . Data Cores Recovered . | . . . Used . | . . . Hacking Detections 12 | . 9 3 Full Trace Events 2 | . 1 1 Feedback Events . | . . . Feedback Blocked . | . . . Robot Schematics Acquired . | . . . Robots Built . | . . . Authchips . | . . . Time . | . . . Total Robot Build Rating . | . . . Part Schematics Acquired . | . . . Parts Built . | . . . Authchips . | . . . Time . | . . . Total Part Build Rating . | . . . Parts Repaired 2 | . 2 . Time 52 | . 52 . Parts Recycled . | . . . Recycled Matter . | . . . Retrieved Matter . | . . . Retrieved Components . | . . . Parts Scanalyzed . | . . . Part Schematics Acquired . | . . . Parts Damaged . | . . . Bothacking | -11 -10 -9 ------------ Run | Yrd Mat Mat Used RIF Installer . | . . . Robots Hacked . | . . . Non-combat . | . . . Combat . | . . . Robot Hacks Applied . | . . . Relay Couplers Released . | . . . Fabnet Peak Effective % . | . . . Robots Rewired . | . . . Allies Hacked . | . . . Hacks Repelled . | . . . Allies | -11 -10 -9 -------- Run | Yrd Mat Mat Total Allies 2 | . 2 . Largest Group 1 | . 1 . Highest-Rated Group 10 | . 10 . Highest-Rated Ally 10 | . 10 . Total Orders 1 | . 1 . ROAM 1 | . 1 . Ally Attacks . | . . . Total Damage . | . . . Kills . | . . . Allies Corrupted . | . . . Allies Melted . | . . . Intel | -11 -10 -9 ------- Run | Yrd Mat Mat Robot Analysis Total 2 | . 2 . Derelict Logs Recovered . | . . . Drone Launches . | . . . Drone Recoveries . | . . . Exploration | -11 -10 -9 ------------- Run | Yrd Mat Mat Turns Passed 1838 | 53 1160 625 Spaces Moved 1191 | 41 787 363 Core 2 | 2 . . Treads . | . . . Legs . | . . . Wheels 1189 | 39 787 363 Hover . | . . . Flight . | . . . Fastest Speed 50 | 50 90 100 Average Speed 99 | 97 99 100 Slowest Speed 115 | 100 115 115 Overloaded Moves . | . . . Propulsion Burnouts . | . . . Robots Hopped . | . . . Cave-ins Triggered . | . . . Exploration Rate (%) 41 | 3 92 28 Regions Visited 2 Branch Regions . Pre-discovered Areas . | . . . Known Exits Taken . | . . . Unknown Exits Taken 2 | 1 1 . Scrap Searched . | . . . Spaces Dug . | . . . Terrain Destroyed 13 | . 13 . Melee . | . . . Projectile . | . . . AOE 13 | . 13 . Terrain Rammed . | . . . Walls Destroyed . | . . . Machines Disabled . | . . . Actions | -11 -10 -9 --------- Run | Yrd Mat Mat Total 1677 | 51 1093 533 Wait 298 | 1 218 79 Move 1189 | 40 786 363 Hop . | . . . Pick Up 24 | 4 15 5 Fast Attach 20 | 6 6 8 Attach 12 | . 3 9 Detach . | . . . Swap 13 | . 7 6 Drop 15 | . 9 6 Fire 106 | . 49 57 Melee . | . . . Ram . | . . . Kick . | . . . Crush . | . . . Escape Stasis . | . . . Rewire . | . . . Trap . | . . . Miscellaneous . | . . . Route ------- -11/Scrapyard -10/Materials (discovered 4 exits: *Mat x3 / [*Min]) -9/Materials (discovered 1 exit: *Mat) History --------- Turn | Location | Event 14 | -11/Scrapyard | Discovered new exit (range 16) 54 | -11/Scrapyard | Entered Materials 313 | -10/Materials | Build established: Mutant 472 | -10/Materials | Discovered new exit (range 10) 554 | -10/Materials | Central database locked down 570 | -10/Materials | Discovered new exit (range 16) 570 | -10/Materials | Discovered new exit (range 8) 763 | -10/Materials | Discovered new exit (range 13) 917 | -10/Materials | Repaired Com. Wheel 944 | -10/Materials | Repaired Sensor Array 1214 | -10/Materials | Entered another Materials area 1214 | -9/Materials | Evolved 2 slots: Utility x2 1715 | -9/Materials | Discovered new exit (range 5) 1723 | -9/Materials | Identified exit to Materials 1795 | -9/Materials | Core integrity fell below 50% 1831 | -9/Materials | Core integrity fell below 20% 1839 | -9/Materials | Destroyed by Y-45 Defender with Beam Rifle Last Messages --------------- 01818_ Acquired 8 matter. 01818_ Acquired 2 matter. 01819_ Acquired 10 matter. 01820_ EM Pulse Gun destroyed. 01820_ Critical hit (Burn: +37). 01821_ Acquired 5 matter. 01821_ Assault Rifle destroyed. 01822_ Acquired 4 matter. 01823_ Com. Wheel destroyed. 01823_ G-34 Mercenary knocked back. 01824_ Acquired 4 matter. 01824_ Com. Wheel destroyed. 01825_ G-34 Mercenary destroyed. 01826_ Acquired 4 matter. 01830_ Lgt. Ion Engine destroyed. 01832_ Acquired 4 matter. 01834_ Acquired 8 matter. 01834_ Acquired 2 matter. 01835_ Acquired 10 matter. 01837_ Acquired 4 matter. Map ----- +----------------------------------------------------+ | ??????????????????????????????????????????????? | | ??????????????????????????????????????????????? | | ??????????????????????????????????????????????? | | ??????????????????????????????????????????????? | | ??????????????????????????????????????????????? | | ??????????????????????????????????????????????? | | ??????????????????????????????????????????????? | | ??????????????????????????????????????????????? | | ???????????????????????##############?+####???? | | ???????????????????????# # """ ???? | | ???????????????????##### # """ [ ????? | | ??????????????????## # # """ ???### | | ????????????###### # + # ???# | | ????????????# # # # ????# | | ????????????#""" # # # ?????# | | ????????????#""" # # # ??????# | | ????????????#""" # ########### ??????#### | | ????????????#""" # ############+######## | | ????????????#""" # | | ????????????# + | | ????????????#""" #Y [ | | ????????????#""" %# =Y#####+######### ##### % | | ??###########""" #! =# #???# #?#####+ | | ??# """ """ #""" # | # ! #???# #?# | | ??# """ """ #""" #! # #???# #?# ! | | ??# """ """ # # @# """ """ #???# #?#] | | ??# ########=% # """ """ #???# #?# | | ??# #??????#=[ # """ """ #???# #?# """ | | ??# #??????#!g # #???? ??# """ | | ??# #??????# % # ! = #???? ??#*""" | | ??# #??????# ###########???? ??# = | | ??#####+############ #?????????????? ??##+### | | ?????# #?????????????? ???#!#?? | | ?????# #?????????????# ???# #?? | | ?????# #????????????## ####%##? | | ?????# ###############????????????# #? | | ?????# #??????????????????????????# #? | | ?????# < #??????????????????? / #? | | ?????# #????????????????????####### ###+### | | ?????#####???????????????????????!! # | | ????????????????????????????????#!! ?# "S | | ????????????????????????????????#!! ??# """ | | ????????????????????????????????#!! ???# "" | | ????????????????????????????????#!! ???# % | | ????????????????????????????????#!! ####+## | | ????????????????????????????????###?# = | | ????????????????????????????? | | ???????????????????????????????###### """ "" | | ????????????????????????????????????## """ "" | | ?????????????????????????????????????# """ "" | +----------------------------------------------------+ Best States ------------- Heat Dissipation 28 Energy Generation 14 Energy Capacity 265 Matter Stores 300 Matter Capacity 300 Sight Range 16 Robot Scan Range 14 Terrain Scan Density 10 Core Shielding 20 Evasion (%) 42 Item Schematics ----------------- None Robot Schematics ------------------ None Fabricated ------------ Nothing Alien Tech Used ----------------- None Achievements -------------- Backstab Challenges ------------ None Game ------ Seed AuthchipAdvancedFacilitator Manual? 0 Play Time 00:32:02 Cumulative 22.5 hours Start 2024.04.08 @ 15:55:48 End 2024.04.08 @ 17:31:50 Sessions 3 Manual Loads 0 Difficulty Rogue Special Mode None Game No. 34 Rogue 34 Adventurer 0 Explorer 0 Win Type - Total 0 Types 0/0/0/0/0/0/0/0/0 Lore% 19 Gallery% 23 Achievement% 23 Wizard Run 0 Options --------- Layout 1 ASCII 0 Keyboard 0 Movement Numpad Keybinds 0 Fullscreen 1 Font 16/SmallcapsGlow Map View 50x40 Zoom Use 0% Tactical HUD 1 Map Filters NONE Filters NONE Steam SD RUN: d78586f4-49e5-4fdf-8677-cd74027af6b4